Workbook

Sheet 1224
A1: Excel Magic Trick 1222: Formula To Add 10kg, 6kg, 19kg: Array Formula Or Custom Number Format? | F1: Timing Code from Charles Williams, Excel MVP:
A2: https://www.youtube.com/watch?v=43GAmOKD7VU | F2: http://www.decisionmodels.com/FxlDown.htm
A4: Weights | D4: =SUMPRODUCT( SUBSTITUTE(A2:A134567,"kg","") +0) | E4: =SUMPRODUCT( LEFT(A2:A134567, LEN(A2:A134567) -2) +0) | F4: =SUMPRODUCT( LEFT(A2:A134567, SEARCH("k",A2:A134567) -1) +0)
A5: 60.3kg | D5: Total | E5: Total | F5: Total
A6: 16.21kg | D6: =SUMPRODUCT(SUBSTITUTE(A5:A134570,"kg","")+0) -> 6740471.33 | E6: =SUMPRODUCT(LEFT(A5:A134570,LEN(A5:A134570)-2)+0) -> 6740471.33 | F6: =SUMPRODUCT(LEFT(A5:A134570,SEARCH("k",A5:A134570)-1)+0) -> 6740471.33
A7: 26.54kg
A8: 44.8kg | C8: Time in seconds
A9: 45.66kg | C9: Times | D9: SUMPRODUCT/SUBSTITUTE Formula (S/S) = 2 | E9: SUMPRODUCT/LEFT/LEN Formula (S/L/L) = 1 | F9: SUMPRODUCT/LEFT/SEARCH Formula
A10: 15.15kg | C10: Time 1 | D10: 0.06131 | E10: 0.07022 | F10: 0.10606
A11: 19.52kg | C11: Time 2 | D11: 0.0679 | E11: 0.07368 | F11: 0.1057
A12: 24.65kg | C12: Time 3 | D12: 0.06264 | E12: 0.06811 | F12: 0.11354
A13: 81.87kg | C13: Time 4 | D13: 0.06243 | E13: 0.07798 | F13: 0.10863
A14: 82.27kg | C14: Time 5 | D14: 0.06465 | E14: 0.07707 | F14: 0.10604
A15: 65.94kg | C15: Time 6 | D15: 0.06872 | E15: 0.07574 | F15: 0.09749
A16: 11.18kg | C16: Time 7 | D16: 0.06633 | E16: 0.07767 | F16: 0.10366
A17: 21.04kg | C17: Time 8 | D17: 0.071 | E17: 0.07644 | F17: 0.1042
A18: 93.18kg | C18: Time 9 | D18: 0.06714 | E18: 0.0676 | F18: 0.11247
A19: 72.19kg | C19: Time 10 | D19: 0.0658 | E19: 0.07492 | F19: 0.10976
A20: 59.03kg | C20: Ave | D20: =AVERAGE(D10:D19) -> 0.065792 | E20: =AVERAGE(E10:E19) -> 0.073943 | F20: =AVERAGE(F10:F19) -> 0.106755
A21: 5.25kg | C21: % Change | D21: =D20/$D$20-1 -> 0 | E21: =E20/$D$20-1 -> 0.1238904426 | F21: =F20/$D$20-1 -> 0.6226136916
A22: 67.43kg
A23: 96.68kg | D23: Run Test as a Mew1 - Mew2, t Distribution, Unequal Variances: | L23: Run Test as 1 Population (S/L/L)
A24: 58.56kg | D24: Question: Is the time to calculate the SUMPRODUCT/LEFT/LEN Formula longer than the time to calculate the SUMPRODUCT/SUBSTITUTE Formula? | L24: Question: Is the time to calculate the SUMPRODUCT/LEFT/LEN Formula longer than the time to calculate the SUMPRODUCT/SUBSTITUTE Formula?
A25: 27.61kg | E25: S/L/L = Population 1 | F25: S/S = Population 2 | L25: Pop Mean = | M25: =D20 -> 0.065792 | N25: Seconds
A26: 8.58kg | D26: n | E26: =COUNT(E10:E19) -> 10 | F26: =COUNT(D10:D19) -> 10 | L26: Alpha = | M26: 0.05
A27: 42.37kg | D27: n - 1 | E27: =E26-1 -> 9 | F27: =F26-1 -> 9 | L27: Sample Standard Deviation | M27: =_xlfn.STDEV.S(D10:D19) -> 0.003070963656 | N27: Seconds
A28: 42.75kg | D28: Xbar | E28: =AVERAGE(E10:E19) -> 0.073943 | F28: =AVERAGE(D10:D19) -> 0.065792 | L28: Distribution? | M28: t
A29: 74.67kg | D29: s | E29: =_xlfn.STDEV.S(E10:E19) -> 0.003923889935 | F29: =_xlfn.STDEV.S(D10:D19) -> 0.003070963656 | L29: Null Hypothesis: | M29: H0 : μ <= .06572
A30: 45.21kg | D30: S^2 | E30: =E29^2 -> 1.539691222e-05 | F30: =F29^2 -> 9.430817778e-06 | L30: Alternative Hypothesis: | M30: Ha : μ > .06572
A31: 64.3kg | D31: S^2/n | E31: =E30/E26 -> 1.539691222e-06 | F31: =F30/F26 -> 9.430817778e-07 | L31: Count = n = | M31: =COUNT(E10:E19) -> 10
A32: 13.65kg | D32: Null Hypothesis: | E32: H0 : Mew1-Mew2 <= 0 | L32: df = | M32: =M31-1 -> 9
A33: 87.5kg | D33: Alternative Hypothesis: | E33: Ha : Mew1-Mew2 > 0 | F33: Upper Test | L33: Xbar = Mean Time (seconds) of New Formula | M33: =E20 -> 0.073943
A34: 89.94kg | D34: Hypothesized Difference = | E34: 0 | L34: Standard Error = | M34: =M27/SQRT(M31) -> 0.0009711239765 | N34: Standard Deviation of the Sampling Distribution of Xbar
A35: 87.99kg | D35: Alpha = | E35: 0.05 | L35: Sample Error = | M35: =M33-M25 -> 0.008151 | N35: Difference between 2 formulas: Xbar - Pop Mean = S/L/L - S/S
A36: 27.31kg | D36: Distribution? | E36: t | L36: t Test Statistic | M36: =M35/M34 -> 8.393367064 | N36: # Standard Errors above Pop Mean
A37: 60.09kg | D37: Xbar 1 - Xbar 2 = Point Estimate of Difference = | E37: =E28-F28 -> 0.008151 | L37: Critical Value (Hurdle past which we conclude there is a statistically significant Difference) | M37: =_xlfn.T.INV(1-M26,M32) -> 1.833112933
A38: 97.54kg | D38: df = | E38: =SUM(E31:F31)^2/SUM(E31^2/E27+F31^2/F27) -> 17.01735151 | L38: ="p-value = Probility of getting Test Statistic of "&ROUND(M36,2)&" or more" -> p-value = Probility of getting Test Statistic of 8.39 or more | M38: =1-_xlfn.T.DIST(M36,M32,1) -> 7.527146388e-06 | N38: =1%*7.527/10000 -> 7.527e-06
A39: 17.52kg | D39: t Test Statistic = | E39: =(E37-E34)/E40 -> 5.172998902 | F39: Aprox Number Of Standard Deviations
A40: 31.56kg | D40: Standrad Error | E40: =SQRT(SUM(E31:F31)) -> 0.001575681757 | L40: The sample evidence strongly suggests that there is a significant increase in formula calculation time, when you move
A41: 96.01kg | D41: p-value | E41: =1-_xlfn.T.DIST(E39,E38,1) -> 3.821167136e-05 | F41: Probability of getting t Test Statistic or More | L41: from the SUMPRODUCT/SUBSTITUTE formula to the SUMPRODUCT/LEFT/LEN formula
A42: 42.18kg
A43: 64.91kg | D43: The sample evidence strongly suggests that there is a significant increase in formula calculation time, when you move
A44: 41.55kg | D44: from the SUMPRODUCT/SUBSTITUTE formula to the SUMPRODUCT/LEFT/LEN formula
A45: 55.01kg
A46: 4.81kg | C46: t-Test: Two-Sample Assuming Unequal Variances
A47: 40.76kg
A48: 4.64kg | D48: SUMPRODUCT/LEFT/LEN Formula (S/L/L) = 1 | E48: SUMPRODUCT/SUBSTITUTE Formula (S/S) = 2
A49: 27.44kg | C49: Mean | D49: 0.073943 | E49: 0.065792
A50: 70.75kg | C50: Variance | D50: 1.539691222e-05 | E50: 9.430817778e-06
A51: 47.49kg | C51: Observations | D51: 10 | E51: 10
A52: 61.53kg | C52: Hypothesized Mean Difference | D52: 0
A53: 63.23kg | C53: df | D53: 17
A54: 55.16kg | C54: t Stat | D54: 5.172998902
A55: 12.68kg | C55: P(T<=t) one-tail | D55: 3.821167136e-05
A56: 75.11kg | C56: t Critical one-tail | D56: 1.739606726
A57: 0.16kg | C57: P(T<=t) two-tail | D57: 7.642334271e-05
A58: 79.5kg | C58: t Critical two-tail | D58: 2.109815578
A59: 83.66kg
A60: 15.72kg
A61: 85.14kg
A62: 46.33kg
A63: 85.37kg
A64: 81.03kg
A65: 61.12kg
A66: 29.98kg
A67: 19.01kg
A68: 5.82kg
A69: 65.95kg
A70: 51.9kg
A71: 78.31kg
A72: 44.73kg
A73: 1.7kg
A74: 6.99kg
A75: 16.46kg
A76: 59.34kg
A77: 34.19kg
A78: 97.13kg
A79: 39.36kg
A80: 19.79kg
A81: 84.87kg
A82: 61.68kg
A83: 94.08kg
A84: 41.04kg
A85: 13.99kg
A86: 34.73kg
A87: 35.74kg
A88: 70.62kg
A89: 85.56kg
A90: 61.98kg
A91: 13kg
A92: 0.05kg
A93: 83.17kg
A94: 72.88kg
A95: 96.54kg
A96: 22.09kg
A97: 60.81kg
A98: 39.26kg
A99: 53.81kg
A100: 32.57kg
A101: 0.31kg
A102: 85.1kg
A103: 39.99kg
A104: 93.33kg
A105: 27.27kg
A106: 46.06kg
A107: 74.36kg
A108: 60.98kg
A109: 20.24kg
A110: 19.78kg
A111: 10.42kg
A112: 26.63kg
A113: 43.86kg
A114: 61.36kg
A115: 57.63kg
A116: 55.34kg
A117: 95.39kg
A118: 30.15kg
A119: 70.32kg
A120: 77.25kg
A121: 49.69kg
A122: 4.82kg
A123: 58.72kg
A124: 57kg
A125: 15.02kg
A126: 40.96kg
A127: 77.48kg
A128: 66.35kg
A129: 74.15kg
A130: 47.61kg
A131: 95.56kg
A132: 21.89kg
A133: 65.1kg
A134: 43.15kg
A135: 32.71kg
A136: 31.9kg
A137: 30.86kg
A138: 7.99kg
A139: 69.82kg
A140: 26.84kg
A141: 26.64kg
A142: 80.95kg
A143: 40.46kg
A144: 49.28kg
A145: 74.79kg
A146: 57.97kg
A147: 63.48kg
A148: 44.81kg
A149: 91.93kg
A150: 27.15kg
A151: 59.9kg
A152: 28.96kg
A153: 48kg
A154: 1.27kg
A155: 53.81kg
A156: 83.94kg
A157: 7.76kg
A158: 85.42kg
A159: 38.34kg
A160: 49.01kg
A161: 21.59kg
A162: 5.11kg
A163: 91.44kg
A164: 22kg
A165: 76.76kg
A166: 88.67kg
A167: 88.06kg
A168: 60.82kg
A169: 33.9kg
A170: 91.42kg
A171: 4.82kg
A172: 98.9kg
A173: 43.03kg
A174: 72.93kg
A175: 25.29kg
A176: 86.02kg
A177: 90.95kg
A178: 29.71kg
A179: 44.54kg
A180: 42.01kg
A181: 12.17kg
A182: 62.74kg
A183: 14.17kg
A184: 50.2kg
A185: 31.56kg
A186: 46.95kg
A187: 34.67kg
A188: 15.28kg
A189: 3.43kg
A190: 55.13kg
A191: 13.36kg
A192: 21.21kg
A193: 49.05kg
A194: 67.17kg
A195: 70.4kg
A196: 46.55kg
A197: 1.82kg
A198: 87.2kg
A199: 16.48kg
A200: 43.92kg
A201: 77.75kg
... 4299 more rows

Sheet Small
A1: Weights | C1: =SUMPRODUCT( SUBSTITUTE(A2:A8,"kg","")+0) | D1: =SUMPRODUCT( LEFT(A2:A8,LEN(A2:A8)-2)+0) | E1: =SUMPRODUCT( LEFT(A2:A8,SEARCH("k",A2:A8)-1)+0)
A2: 60.3kg | C2: Total | D2: Total | E2: Total
A3: 16.21kg
A4: 26.54kg
A5: 44.8kg | C5: Excel Magic Trick 1222: Formula To Add 10kg, 6kg, 19kg: Array Formula Or Custom Number Format?
A6: 45.66kg | C6: https://www.youtube.com/watch?v=43GAmOKD7VU
A7: 15.15kg
A8: 19.52kg

Sheet Small (an)
A1: Weights | C1: =SUMPRODUCT( SUBSTITUTE(A2:A8,"kg","")+0) | D1: =SUMPRODUCT( LEFT(A2:A8,LEN(A2:A8)-2)+0) | E1: =SUMPRODUCT( LEFT(A2:A8,SEARCH("k",A2:A8)-1)+0)
A2: 60.3kg | C2: Total | D2: Total | E2: Total
A3: 16.21kg | C3: =SUMPRODUCT(SUBSTITUTE(A2:A8,"kg","")+0) -> 228.18 | D3: =SUMPRODUCT(LEFT(A2:A8,LEN(A2:A8)-2)+0) -> 228.18 | E3: =SUMPRODUCT(LEFT(A2:A8,SEARCH("k",A2:A8)-1)+0) -> 228.18
A4: 26.54kg
A5: 44.8kg | C5: Excel Magic Trick 1222: Formula To Add 10kg, 6kg, 19kg: Array Formula Or Custom Number Format?
A6: 45.66kg | C6: https://www.youtube.com/watch?v=43GAmOKD7VU
A7: 15.15kg
A8: 19.52kg

Sheet Sheet3
